bitfinex/quotes_SOLUSD_20250829
["timestamp","ask_amount","ask_price","bid_price","bid_amount"]
[1756428328524,6.74257814,215.19,215.14,4.64813609]
[1756428328819,13.87991715,215.2,215.15,7.09257814]
[1756428329025,0.28432314,215.2,215.17,6.74257814]
[1756428329230,7.092578,215.23,215.18,0.35]
[1756428329531,0.28432314,215.24,215.19,26.0]
[1756428329704,13.595594,215.28,215.2,0.35]
[1756428329906,20.62249529,215.27,215.21,4.64662422]
[1756428330103,20.62249529,215.23,215.17,0.35]
[1756428330327,6.74257814,215.2,215.14,6.74257814]
[1756428330708,0.28432314,215.21,215.14,4.64813609]
[1756428330934,6.74257814,215.18,215.14,26.0]
[1756428331432,13.59559401,215.21,215.15,0.35]
[1756428331623,0.28432314,215.21,215.15,26.35]
[1756428331828,0.28432314,215.21,215.19,4.64705608]
[1756428332535,6.74257814,215.28,215.2,0.35]
[1756428332838,0.28432314,215.26,215.21,6.74257814]
[1756428333130,13.59559401,215.29,215.24,6.74257814]
[1756428333340,13.59559401,215.29,215.26,6.74257814]
[1756428333928,13.59559401,215.32,215.28,6.74257814]
[1756428334110,13.59559401,215.3,215.19,0.35]
[1756428334312,13.59559401,215.27,215.15,4.64792005]
[1756428334537,6.74257814,215.16,215.11,0.37107585]
[1756428334740,3.09207978,215.15,215.09,6.74257814]
[1756428334900,3.09207978,215.18,215.11,0.7]
[1756428335106,9.83465792,215.18,215.11,0.7]
[1756428335431,3.09207978,215.17,215.11,0.7]
[1756428335622,6.74257814,215.17,215.11,0.7]
[1756428335823,3.90055851,215.22,215.13,6.74257814]
[1756428336019,26.0,215.23,215.14,0.7]
[1756428336327,3.08796946,215.22,215.14,0.7]
[1756428336535,40.66,215.27,215.17,6.74257814]
[1756428336735,6.74257814,215.25,215.18,0.7]
[1756428336914,6.74257814,215.19,215.15,26.0]
[1756428337116,8.54590653,215.27,215.14,26.0]
[1756428337317,6.74257814,215.18,215.14,26.0]
[1756428337628,6.74257814,215.16,215.09,7.442579]
[1756428337826,6.74257814,215.16,215.12,26.0]
[1756428338003,6.74257814,215.16,215.13,0.7]
[1756428338206,6.74257814,215.16,215.11,26.0]
[1756428338407,0.6,215.25,215.12,6.74257814]
[1756428338628,6.74257814,215.18,215.13,0.7]
[1756428338829,6.74257814,215.18,215.14,0.7]
[1756428339009,6.74257814,215.17,215.14,0.7]
[1756428340129,6.74257814,215.15,215.08,0.7]
[1756428340430,6.74257814,215.12,215.08,0.7]
[1756428340613,6.74257814,215.12,215.1,26.0]
[1756428341218,6.74257814,215.12,215.09,26.7]
[1756428341604,6.74257814,215.11,215.09,26.7]
[1756428341834,6.74257814,215.12,215.09,26.7]
[1756428342046,7.342579,215.17,215.09,26.7]
[1756428342217,6.742579,215.17,215.1,32.74257814]
[1756428342411,6.74257814,215.23,215.16,26.0]
[1756428342607,6.74257814,215.23,215.17,0.7]
[1756428342813,6.74257814,215.21,215.17,0.7]
[1756428343232,6.742579,215.25,215.2,6.74257814]
[1756428343439,7.342579,215.25,215.17,0.7]
[1756428343736,7.342579,215.25,215.2,6.74257814]
[1756428343936,0.6,215.25,215.2,6.74257814]
[1756428344243,7.342579,215.28,215.24,6.74257814]
[1756428344460,13.59559401,215.27,215.23,6.74257814]
[1756428344940,20.33817215,215.27,215.17,0.7]
[1756428345245,0.28432314,215.24,215.2,6.74257814]
[1756428345423,7.342579,215.28,215.23,6.74257814]
[1756428345742,13.59559401,215.27,215.25,6.74257814]
[1756428345921,13.59559401,215.29,215.26,6.74257814]
[1756428346124,20.57824311,215.3,215.28,6.74257814]
[1756428346324,20.57824311,215.3,215.29,7.44257814]
[1756428346714,13.59559401,215.29,215.27,6.74257814]
[1756428347014,13.59559401,215.29,215.28,6.74257814]
[1756428347216,20.57824311,215.3,215.28,0.7]
[1756428347422,34.17383712,215.3,215.29,6.74257814]
[1756428348637,34.17383712,215.3,215.26,0.7]
[1756428348916,34.17383712,215.3,215.29,6.74257814]
[1756428349730,18.28824311,215.3,215.29,12.08747572]
[1756428350053,18.28824311,215.3,215.29,53.92515614]
[1756428350649,18.28824311,215.3,215.29,58.57005372]
[1756428350947,13.59559401,215.38,215.29,70.18229767]
[1756428351259,13.59559401,215.38,215.37,6.74257814]
[1756428351834,14.29559401,215.38,215.37,6.74257814]
[1756428354223,0.7,215.41,215.37,11.38575035]
[1756428354443,13.59559401,215.4,215.37,4.64317221]
[1756428354739,0.06,215.44,215.37,26.0]
[1756428354953,3.07706527,215.47,215.41,26.0]
[1756428355137,0.7,215.58,215.49,26.0]
[1756428355323,0.7,215.58,215.5,40.52]
[1756428355828,0.7,215.58,215.56,6.74257814]
[1756428356221,0.7,215.57,215.51,40.5]
[1756428356533,0.06,215.6,215.56,6.74257814]
[1756428356724,0.06,215.6,215.59,6.74257814]
[1756428357330,0.06,215.6,215.54,11.38190452]
[1756428357654,0.06,215.6,215.59,6.74257814]
[1756428359943,0.06,215.6,215.59,11.3810122]
[1756428360340,0.06,215.63,215.62,26.0]
[1756428360528,0.06,215.63,215.62,73.08257814]
[1756428360732,0.06,215.63,215.59,4.63836961]
[1756428360964,0.06,215.63,215.62,32.74257814]
[1756428361461,0.06,215.63,215.62,79.57914584]
[1756428361968,0.06,215.63,215.62,68.178779]
[1756428362169,0.06,215.63,215.62,6.74257814]
[1756428362460,0.06,215.63,215.59,1.859039]
[1756428362662,0.7,215.62,215.6,40.32]
[1756428362839,0.7,215.62,215.61,6.74257814]
[1756428363648,0.06,215.63,215.61,6.74257814]
[1756428363849,0.06,215.63,215.62,6.74257814]
[1756428364966,0.06,215.63,215.62,46.98257814]
[1756428365264,0.06,215.63,215.62,6.74257814]
[1756428365463,0.06,215.63,215.62,51.62036684]
[1756428365844,0.06,215.63,215.62,51.60036684]
[1756428366042,0.06,215.64,215.62,51.60036684]
[1756428366237,0.06,215.64,215.63,6.74257814]
[1756428366757,0.06,215.64,215.63,46.94257814]
[1756428367945,0.06,215.64,215.63,22.38015176]
[1756428368144,0.06,215.67,215.63,22.38015176]
[1756428368145,0.06,215.67,215.66,26.0]
[1756428368346,0.7,215.76,215.66,39.48515628]
[1756428368737,0.7,215.76,215.68,6.74257814]
[1756428368950,0.06,215.78,215.68,46.88257814]
[1756428369148,0.06,215.78,215.69,6.74257814]
[1756428369366,0.06,215.78,215.72,32.74257814]
[1756428369539,0.06,215.78,215.72,72.88257814]
[1756428369740,0.06,215.78,215.74,6.74257814]
[1756428369967,0.06,215.78,215.74,11.37778718]
[1756428371378,0.06,215.78,215.74,22.37778718]
[1756428371556,0.76,215.78,215.74,46.88257814]
[1756428371741,0.06,215.78,215.74,6.74257814]
[1756428372067,0.76,215.75,215.74,46.88257814]
[1756428372446,0.06,215.75,215.74,46.88257814]
[1756428372646,0.76,215.75,215.67,6.74257814]
[1756428372848,0.76,215.75,215.71,26.0]
[1756428373157,0.06,215.75,215.74,6.74257814]
[1756428373469,0.06,215.75,215.74,46.86257814]
[1756428373839,0.06,215.75,215.74,6.74257814]
[1756428374140,0.06,215.75,215.74,51.49778718]
[1756428375340,0.76,215.75,215.74,40.12]
[1756428375965,13.59559401,215.74,215.64,4.63735856]
[1756428376144,13.59559401,215.74,215.69,6.74257814]
[1756428376145,0.7,215.73,215.69,6.74257814]
[1756428376471,0.7,215.72,215.7,40.12]
[1756428376648,6.74257814,215.74,215.71,40.12]
[1756428376845,6.80257814,215.75,215.71,40.12]
[1756428377468,13.59559401,215.73,215.71,40.12]
[1756428377677,13.59559401,215.73,215.57,13.59559401]
[1756428377678,13.59559401,215.71,215.68,40.12]
[1756428377847,13.59559401,215.69,215.68,40.12]
[1756428378042,0.7,215.69,215.68,40.12]
[1756428378244,0.34432314,215.75,215.68,51.49897122]
[1756428378245,0.06,215.75,215.68,51.49897122]
[1756428378470,0.06,215.75,215.74,6.74257814]
[1756428378664,0.06,215.75,215.74,46.86257814]
[1756428378865,0.06,215.75,215.74,40.12]
[1756428379056,0.06,215.75,215.74,46.86257814]
[1756428379249,0.06,215.75,215.74,40.12]
[1756428379458,0.06,215.75,215.74,46.86257814]
[1756428380259,0.06,215.75,215.74,51.49778718]
[1756428380468,0.06,215.75,215.74,37.37778718]
[1756428380776,7.50257814,215.75,215.6,4.63821892]
[1756428380949,14.29559401,215.74,215.61,40.12]
[1756428381149,0.7,215.73,215.68,6.74257814]
[1756428381366,0.7,215.72,215.69,40.12]
[1756428381560,0.7,215.72,215.69,46.86257814]
[1756428381870,0.7,215.71,215.67,6.74257814]
[1756428382079,13.59559401,215.73,215.7,40.12]
[1756428382547,6.80257814,215.75,215.66,26.0]
[1756428382548,7.44257814,215.72,215.66,32.74257814]
[1756428382749,21.03817215,215.71,215.67,40.12]
[1756428382974,4.69505282,215.75,215.67,40.12]
[1756428382975,13.59559401,215.69,215.67,40.12]
[1756428383273,0.7,215.68,215.67,40.12]
[1756428384259,0.7,215.68,215.64,9.89651269]
[1756428384577,0.7,215.67,215.66,40.1]
[1756428385075,0.7,215.74,215.66,49.99651269]
[1756428385279,13.59559401,215.73,215.66,49.99651269]
[1756428385571,13.59559401,215.73,215.66,40.1]
[1756428385770,13.59559401,215.73,215.69,9.89651269]
[1756428385977,0.7,215.72,215.7,49.99651269]
[1756428386302,0.7,215.71,215.7,40.1]
[1756428386480,10.59651269,215.71,215.67,40.1]
[1756428386646,10.59651269,215.7,215.67,40.1]
[1756428386853,23.4921067,215.68,215.67,40.1]
[1756428387070,24.1921067,215.68,215.67,40.1]
[1756428387259,14.29559401,215.68,215.67,40.1]
[1756428388182,24.1921067,215.68,215.67,40.1]
[1756428388377,0.7,215.68,215.67,40.1]
[1756428389060,10.59651269,215.74,215.67,54.63308082]
[1756428389268,13.59559401,215.73,215.68,9.89651269]
[1756428389450,14.29559401,215.73,215.7,0.03]
[1756428389653,13.59559401,215.74,215.7,0.03]
[1756428389953,24.1921067,215.74,215.7,40.13]
[1756428390172,23.4921067,215.71,215.7,40.13]
[1756428390368,24.2121067,215.71,215.7,0.03]
[1756428390569,0.28432314,215.7,215.65,0.03]
[1756428390857,23.77642984,215.66,215.65,0.03]
[1756428391075,24.49642984,215.66,215.65,0.03]
[1756428391272,24.2121067,215.66,215.65,0.03]
[1756428391475,24.49642984,215.66,215.65,0.03]
[1756428393367,24.49642984,215.66,215.59,0.03]
[1756428393368,13.87991715,215.65,215.59,0.03]
[1756428393568,32.20825529,215.66,215.59,0.03]
[1756428393569,23.77642984,215.6,215.59,0.03]
[1756428393878,13.87991715,215.59,215.56,0.03]
[1756428394088,0.72,215.59,215.56,0.03]
[1756428394277,13.59559401,215.57,215.56,0.03]
[1756428394653,0.72,215.57,215.56,0.03]
[1756428395080,10.61651269,215.57,215.56,0.03]
[1756428395264,27.29583236,215.57,215.56,0.03]
[1756428396069,27.5801555,215.57,215.56,0.03]
[1756428396362,16.67931967,215.57,215.56,0.03]
[1756428396596,13.59559401,215.57,215.56,0.03]
[1756428397065,27.58343825,215.57,215.56,0.03]
[1756428397683,16.68260242,215.57,215.56,0.03]
[1756428397987,3.08700841,215.57,215.56,9.92651269]
[1756428398291,3.08700841,215.57,215.56,0.03]
[1756428398466,3.08700841,215.57,215.56,4.6690796]
[1756428398672,3.08700841,215.57,215.56,95.26559229]
[1756428399784,3.08700841,215.57,215.56,80.73]
[1756428400784,3.08700841,215.57,215.56,85.3690796]
[1756428400986,3.08700841,215.57,215.56,135.36559229]
[1756428401597,3.78906227,215.65,215.59,26.0]
[1756428401789,3.78906227,215.69,215.64,9.89651269]
[1756428401972,0.72,215.71,215.68,9.89651269]
[1756428402178,0.72,215.71,215.66,9.89651269]
[1756428402399,0.72,215.7,215.66,9.89651269]
[1756428402602,13.59559401,215.71,215.67,9.89651269]
[1756428402898,13.59559401,215.72,215.69,14.53279624]
[1756428403104,9.89651269,215.74,215.69,40.1]
[1756428403278,10.88448313,215.73,215.69,40.1]
[1756428403480,13.59559401,215.69,215.66,40.1]
[1756428403830,13.59559401,215.67,215.66,40.1]
[1756428404106,13.59559401,215.66,215.63,40.1]
[1756428404309,0.72,215.65,215.6,32.71660837]
[1756428404487,13.59559401,215.66,215.61,40.1]
[1756428404809,13.59559401,215.65,215.61,40.1]
[1756428405188,6.71660837,215.67,215.61,46.81660837]
[1756428405407,13.59559401,215.67,215.62,6.71660837]
[1756428405599,0.72,215.66,215.62,6.71660837]
[1756428405801,13.59559401,215.68,215.64,6.71660837]
[1756428406001,13.59559401,215.72,215.67,6.71660837]
[1756428406194,13.59559401,215.7,215.68,6.71660837]
[1756428406394,0.72,215.7,215.65,40.1]
[1756428406620,0.72,215.7,215.65,46.81660837]
[1756428407423,13.59559401,215.68,215.65,40.1]
[1756428407609,0.72,215.68,215.65,40.1]
[1756428408921,13.59559401,215.7,215.67,6.71660837]
[1756428409131,0.06,215.72,215.69,6.71660837]
[1756428409430,0.06,215.72,215.71,6.71660837]
[1756428410806,0.06,215.72,215.71,11.35246206]
[1756428411803,0.06,215.72,215.71,4.63585369]
[1756428412015,0.06,215.72,215.71,40.1]
[1756428412322,0.06,215.72,215.71,46.81660837]
[1756428413524,0.06,215.72,215.66,6.71660837]
[1756428413525,7.49660837,215.72,215.66,6.71660837]
[1756428413727,6.71660837,215.7,215.67,40.08]
[1756428413911,0.72,215.69,215.67,40.08]
[1756428414308,6.71660837,215.7,215.67,40.08]
[1756428414607,0.72,215.69,215.67,40.08]
[1756428414805,13.59559401,215.67,215.61,0.03]
[1756428415109,20.31220238,215.65,215.62,40.08]
[1756428415322,21.03220238,215.65,215.62,40.08]
[1756428415634,20.31220238,215.65,215.62,40.08]
[1756428415834,0.72,215.64,215.62,40.08]
[1756428416358,13.59559401,215.66,215.61,6.74660837]
[1756428416540,14.31559401,215.66,215.62,46.79660837]
[1756428416705,14.31559401,215.66,215.62,44.71778405]
[1756428417133,20.31220238,215.68,215.62,51.43439242]
[1756428417436,9.90027422,215.66,215.62,40.08]
[1756428417740,24.21586823,215.65,215.62,40.08]
[1756428418034,13.59559401,215.67,215.62,44.71776556]
[1756428418208,13.59559401,215.67,215.62,54.61803978]
[1756428418411,14.31559401,215.67,215.62,54.61803978]
[1756428418707,24.21586823,215.67,215.62,44.71776556]
[1756428419132,24.21586823,215.67,215.56,0.03]
[1756428419133,13.59559401,215.59,215.56,0.03]
[1756428419329,23.78019137,215.57,215.56,0.03]
[1756428419730,24.50019137,215.57,215.56,0.03]
[1756428420324,27.95589488,215.57,215.56,0.03]
[1756428420619,24.50019137,215.57,215.56,0.03]
[1756428421517,24.50019137,215.57,215.44,0.1]
[1756428421518,39.59559401,215.55,215.44,0.1]
[1756428421719,13.87991715,215.5,215.44,0.1]
[1756428421916,23.49586823,215.45,215.44,0.1]
[1756428422315,24.44019137,215.45,215.44,0.1]
[1756428422512,13.87991715,215.44,215.37,0.1]
[1756428422737,9.90027422,215.39,215.37,0.1]
[1756428423042,23.49586823,215.41,215.37,4.74317221]
[1756428424143,9.90027422,215.4,215.37,4.74317221]
[1756428424435,9.90027422,215.41,215.37,4.74317221]
[1756428425835,9.90027422,215.4,215.37,4.74317221]
[1756428426138,13.59559401,215.42,215.37,4.74317221]
[1756428426327,9.90027422,215.41,215.37,4.74317221]
[1756428426519,9.90027422,215.4,215.37,4.74317221]
[1756428426836,9.90027422,215.39,215.37,4.74317221]
[1756428427018,24.15586823,215.38,215.37,0.1]
[1756428427215,14.25559401,215.38,215.37,0.1]
[1756428427415,24.15586823,215.38,215.37,0.1]
[1756428428412,23.49586823,215.38,215.37,0.1]
[1756428428845,23.49586823,215.38,215.37,4.74317221]
[1756428429052,0.28432314,215.44,215.37,4.74317221]
[1756428429232,9.90027422,215.44,215.39,4.64274107]
[1756428429428,13.59559401,215.42,215.39,4.64274107]
[1756428430334,9.90027422,215.47,215.41,9.90027422]
[1756428430540,13.59559401,215.46,215.42,9.90027422]
[1756428431046,0.66,215.5,215.41,9.90027422]
[1756428431047,23.49586823,215.47,215.41,9.90027422]
[1756428431243,23.49586823,215.47,215.42,4.64209451]
[1756428431544,13.59559401,215.49,215.45,9.90027422]
[1756428431922,13.59559401,215.49,215.44,9.90027422]
[1756428432224,9.90027422,215.52,215.46,9.90027422]
[1756428432424,13.59559401,215.51,215.46,9.90027422]
[1756428432644,13.59559401,215.51,215.47,9.90027422]
[1756428432944,13.59559401,215.51,215.46,9.90027422]
[1756428433147,13.59559401,215.51,215.48,9.90027422]
[1756428433352,13.59559401,215.52,215.49,14.54086079]
[1756428433662,13.59559401,215.52,215.49,4.64058657]
[1756428433955,0.66,215.51,215.49,4.64058657]
[1756428434247,0.66,215.51,215.34,0.03]
[1756428434248,13.59559401,215.44,215.34,0.03]
[1756428434415,13.59559401,215.44,215.34,39.91]
[1756428434416,23.49586823,215.42,215.34,39.91]
[1756428434620,9.90027422,215.39,215.34,39.91]
[1756428434930,9.90027422,215.38,215.34,39.91]
[1756428435140,9.90027422,215.39,215.34,39.91]
[1756428435334,14.25559401,215.41,215.34,39.91]
[1756428435335,9.90027422,215.38,215.34,44.55379946]
[1756428435850,9.90027422,215.38,215.34,39.91]
[1756428436452,9.90027422,215.38,215.34,44.55379415]
[1756428436648,9.90027422,215.38,215.34,39.91]
[1756428436824,10.56027422,215.38,215.34,39.91]
[1756428437251,0.66,215.42,215.34,39.91]
[1756428437429,9.90027422,215.4,215.37,4.74306777]
[1756428437644,9.90027422,215.42,215.37,30.74306777]
[1756428438256,9.90027422,215.43,215.37,40.64334199]
[1756428438553,9.90027422,215.42,215.37,30.74306777]
[1756428438754,3.78906227,215.55,215.44,26.0]
[1756428439054,0.66,215.55,215.5,9.90027422]
[1756428439238,0.66,215.55,215.5,54.64044388]
[1756428439443,9.90027422,215.56,215.5,54.64044388]
[1756428439645,9.96027422,215.57,215.51,9.90027422]
[1756428439838,9.90027422,215.54,215.5,44.74016966]
[1756428440049,9.90027422,215.54,215.5,44.7403358]
[1756428440255,9.90027422,215.56,215.5,54.64061002]
[1756428440442,0.06,215.57,215.52,9.90027422]
[1756428440640,0.06,215.57,215.53,9.90027422]
[1756428440841,0.06,215.57,215.52,9.90027422]
[1756428441054,0.06,215.57,215.54,9.90027422]
[1756428441265,0.06,215.57,215.56,4.6390796]
[1756428442032,0.06,215.57,215.55,40.08]
[1756428442336,0.06,215.57,215.56,9.90027422]
[1756428442855,0.06,215.57,215.56,10.12027422]
[1756428443656,0.06,215.57,215.56,14.53935382]
[1756428443855,0.06,215.57,215.54,4.63929562]
[1756428444155,0.06,215.57,215.56,49.98027422]
[1756428445149,0.06,215.57,215.56,50.20027422]
[1756428445352,0.06,215.57,215.56,49.98027422]
[1756428445650,0.06,215.57,215.56,54.61935382]
[1756428447759,13.59559401,215.56,215.48,9.90027422]
[1756428447961,9.90027422,215.54,215.48,9.90027422]
[1756428448143,9.90027422,215.54,215.49,40.06]
[1756428448350,0.66,215.54,215.49,75.96027422]
[1756428448661,13.59559401,215.56,215.49,66.06]
[1756428448835,23.49586823,215.56,215.5,4.64024537]
[1756428450048,0.06,215.57,215.55,9.90027422]
[1756428450352,0.06,215.57,215.56,49.96027422]
[1756428450546,0.06,215.57,215.56,40.06]
[1756428450750,0.06,215.57,215.56,49.96027422]
[1756428451060,0.06,215.57,215.56,54.59935382]
[1756428451242,0.06,215.57,215.56,44.6990796]
[1756428451441,0.06,215.57,215.56,40.06]
[1756428451855,13.59559401,215.56,215.46,4.64123271]
[1756428452061,9.90027422,215.52,215.47,40.06]
[1756428452264,0.06,215.57,215.47,40.06]
[1756428452265,0.06,215.57,215.51,9.90027422]
[1756428452561,0.06,215.57,215.56,9.90027422]
[1756428452767,0.06,215.57,215.56,49.96027422]
[1756428453060,0.06,215.57,215.56,54.59935382]
[1756428453444,0.06,215.57,215.56,44.6990796]
[1756428453750,0.06,215.57,215.56,54.59935382]
[1756428456060,0.06,215.57,215.56,95.23935382]
[1756428456383,0.06,215.57,215.56,135.29935382]
[1756428457261,0.06,215.58,215.56,135.51935382]
[1756428457445,0.06,215.58,215.57,10.12027422]
[1756428457646,0.06,215.58,215.57,9.90027422]
[1756428457853,0.06,215.58,215.57,49.94027422]
[1756428458180,0.06,215.58,215.57,75.94027422]
[1756428458666,0.06,215.58,215.57,49.94027422]
[1756428459269,0.06,215.58,215.57,54.57913862]
[1756428462743,0.06,215.6,215.59,26.0]
[1756428463076,0.06,215.6,215.59,75.94027422]
[1756428463272,0.06,215.6,215.59,156.64027422]
[1756428463455,0.06,215.6,215.59,153.45978311]
[1756428463776,0.06,215.6,215.59,158.09821717]
[1756428464146,0.06,215.6,215.59,118.05821717]
[1756428464468,0.06,215.6,215.59,158.09821717]
[1756428466081,0.06,215.6,215.59,158.07821717]
[1756428467464,0.06,215.6,215.59,118.05821717]
[1756428467667,0.06,215.6,215.59,158.07821717]
[1756428467876,0.06,215.6,215.59,118.05821717]
[1756428468278,0.06,215.6,215.59,158.07821717]
[1756428469780,13.59559401,215.59,215.56,4.63905343]
[1756428470078,13.59559401,215.59,215.53,92.29919826]
[1756428470079,0.68,215.58,215.54,4.63942089]
[1756428470258,0.68,215.57,215.55,40.02]
[1756428470461,0.74,215.6,215.56,6.71978311]
[1756428470767,0.68,215.59,215.57,40.02]
[1756428471075,13.59559401,215.57,215.5,87.41978311]
[1756428471273,0.68,215.56,215.51,46.73978311]
[1756428471455,0.68,215.55,215.51,46.73978311]
[1756428471655,20.31537712,215.57,215.51,46.73978311]
[1756428471656,0.68,215.54,215.51,46.73978311]
[1756428471978,0.68,215.53,215.51,51.37988226]
[1756428476651,0.68,215.52,215.49,118.06017853]
[1756428476884,6.71978311,215.59,215.51,6.71978311]
[1756428477057,0.68,215.58,215.56,6.71978311]
[1756428477255,0.06,215.6,215.57,40.0]
[1756428477874,0.68,215.59,215.57,44.63879556]
[1756428478077,20.99537712,215.58,215.53,4.63972532]
[1756428478288,20.99537712,215.58,215.54,40.0]
[1756428478289,7.39978311,215.57,215.54,40.0]
[1756428478664,0.68,215.56,215.54,40.0]
[1756428478862,0.68,215.59,215.55,6.71978311]
[1756428479078,0.68,215.58,215.56,46.71978311]
[1756428479379,0.68,215.57,215.56,44.6390796]
[1756428480271,0.68,215.57,215.56,40.0]
[1756428481084,0.68,215.57,215.55,4.63928912]
[1756428481394,0.68,215.57,215.56,46.71978311]
[1756428481570,3.11157211,215.59,215.54,6.71978311]
[1756428481890,13.59559401,215.54,215.52,40.0]
[1756428482058,3.83157211,215.53,215.51,51.38993573]
[1756428482262,0.72,215.56,215.52,6.71978311]
[1756428482585,0.72,215.56,215.53,46.71978311]
[1756428482586,0.72,215.55,215.53,46.71978311]
[1756428482967,0.72,215.55,215.54,6.71978311]
[1756428483474,0.72,215.55,215.54,11.35929317]
[1756428483673,3.83157211,215.55,215.54,4.63951006]
[1756428483983,0.72,215.55,215.54,39.98]
[1756428484377,0.72,215.55,215.54,46.69978311]
[1756428484683,0.72,215.55,215.54,39.98]
[1756428484891,0.72,215.55,215.54,46.69978311]
[1756428485378,3.83157211,215.55,215.54,46.69978311]
[1756428485578,0.72,215.55,215.54,46.69978311]
[1756428485966,0.72,215.55,215.53,11.35933042]
[1756428486163,3.83157211,215.55,215.54,39.98]
[1756428486362,0.72,215.55,215.54,39.98]
[1756428486762,0.72,215.55,215.53,4.63954731]
[1756428486970,0.72,215.55,215.54,39.98]
[1756428486971,3.83157211,215.55,215.54,39.98]
[1756428487189,0.72,215.55,215.54,39.98]
[1756428487583,0.72,215.55,215.54,46.69978311]
[1756428489379,0.72,215.55,215.54,39.98]
[1756428489592,14.31559401,215.55,215.53,39.98]
[1756428489772,0.72,215.54,215.52,6.71978311]
[1756428489967,3.12095109,215.54,215.51,87.44978311]
[1756428490159,13.59559401,215.53,215.51,0.03]
[1756428490393,16.7165451,215.52,215.51,39.99]
[1756428490568,17.4365451,215.52,215.51,39.99]
[1756428490767,3.12095109,215.52,215.51,46.70978311]
[1756428490974,3.12095109,215.54,215.51,51.34993901]
[1756428491280,0.72,215.53,215.51,46.70978311]
[1756428491476,0.72,215.52,215.51,39.99]
[1756428491789,10.84465966,215.52,215.51,0.03]
[1756428492101,0.28432314,215.5,215.48,0.03]
[1756428492400,0.28432314,215.5,215.48,6.74978311]
[1756428492401,3.12055341,215.5,215.48,6.74978311]
[1756428492580,0.72,215.51,215.48,6.74978311]
[1756428492974,0.72,215.5,215.48,6.74978311]
[1756428493488,0.72,215.5,215.48,11.39057948]
[1756428493765,0.72,215.5,215.48,6.74978311]
[1756428493980,14.31559401,215.49,215.48,0.03]
[1756428495684,3.78906227,215.56,215.48,6.74978311]
[1756428495892,13.59559401,215.52,215.48,6.74978311]
[1756428496089,3.83784143,215.51,215.48,0.03]
[1756428496279,3.83784143,215.51,215.48,6.74978311]
[1756428496589,0.72,215.5,215.48,6.74978311]
[1756428497583,3.11784143,215.51,215.49,6.71978311]
[1756428497788,3.83784143,215.51,215.49,11.36024479]
[1756428498088,3.11784143,215.51,215.49,11.36024479]
[1756428498273,0.72,215.5,215.48,6.74978311]
[1756428498590,3.11784143,215.51,215.48,11.39047807]
[1756428498794,3.83784143,215.51,215.48,11.39047807]
[1756428499187,14.31559401,215.5,215.48,0.03]
[1756428499367,20.59970026,215.49,215.48,0.03]
[1756428499687,23.71567832,215.49,215.48,0.03]
[1756428499871,24.43567832,215.49,215.48,0.03]
[1756428501289,17.71589521,215.49,215.48,0.03]
[1756428501472,14.59991715,215.49,215.48,0.03]
[1756428501672,24.43413714,215.49,215.48,0.03]
[1756428503289,17.43003089,215.49,215.48,0.03]
[1756428503485,14.31559401,215.49,215.48,0.03]
[1756428504075,13.59559401,215.49,215.48,6.74978311]
[1756428504390,13.59559401,215.49,215.48,0.03]
[1756428505592,17.42859587,215.49,215.48,0.03]
[1756428507186,17.71291901,215.49,215.48,0.03]
[1756428507903,16.70859587,215.49,215.48,0.03]
[1756428508090,13.59559401,215.49,215.48,0.03]
[1756428508402,14.31559401,215.49,215.48,0.03]
[1756428508697,17.42883142,215.49,215.48,0.03]
[1756428508886,14.31559401,215.49,215.48,0.03]
[1756428509390,13.59559401,215.49,215.48,0.03]
[1756428509592,1.00432314,215.54,215.48,6.74978311]
[1756428509892,39.59559401,215.53,215.48,6.74978311]
[1756428510101,13.59559401,215.51,215.48,6.74978311]